bitfinex/quotes_BTCUSD_20230404
["timestamp","ask_amount","ask_price","bid_price","bid_amount"]
[1680593722593,0.54158683,28011.0,28009.0,0.1]
[1680593722814,0.60553698,28011.0,28008.0,0.15797925]
[1680593723037,0.008,28009.0,28008.0,0.15797925]
[1680593723252,0.37527644,28010.0,28008.0,0.15797925]
[1680593723253,0.3755484,28010.0,28008.0,0.15797925]
[1680593725465,0.3755484,28010.0,28009.0,0.1]
[1680593726376,0.3755484,28010.0,28008.0,0.15797925]
[1680593726603,0.3905484,28010.0,28008.0,0.15797925]
[1680593726814,0.01527196,28010.0,28008.0,0.15797925]
[1680593727024,0.03,28010.0,28008.0,0.15797925]
[1680593727233,0.64530129,28011.0,28008.0,0.15797925]
[1680593727448,0.008,28010.0,28008.0,0.15797925]
[1680593727673,0.008,28010.0,28008.0,0.042844]
[1680593727891,0.008,28010.0,28009.0,0.397332]
[1680593728116,0.008,28010.0,28009.0,0.511613]
[1680593728331,0.00027196,28012.0,28009.0,0.511613]
[1680593728552,0.00027196,28014.0,28011.0,0.1]
[1680593728773,0.00027196,28014.0,28012.0,0.036262]
[1680593728999,0.19760807,28015.0,28013.0,0.021832]
[1680593729214,0.19760807,28015.0,28012.0,0.020991]
[1680593729679,0.19749726,28015.0,28012.0,0.020991]
[1680593730345,0.19749726,28015.0,28012.0,0.2175649]
[1680593730565,0.19849726,28015.0,28012.0,0.2197449]
[1680593730786,0.19849726,28015.0,28013.0,0.12586988]
[1680593733581,0.19749726,28015.0,28013.0,0.12586988]
[1680593734714,0.19749726,28015.0,28013.0,0.22604988]
[1680593734926,0.19749726,28015.0,28014.0,0.121656]
[1680593735143,0.20549726,28015.0,28014.0,0.021656]
[1680593735366,0.20549726,28015.0,28013.0,0.22604988]
[1680593735582,0.20549726,28015.0,28014.0,0.022628]
[1680593735806,0.20549726,28015.0,28013.0,0.22604988]
[1680593736032,0.20549726,28015.0,28014.0,0.20280221]
[1680593736253,0.20549726,28015.0,28014.0,0.18194821]
[1680593736698,0.20549726,28015.0,28014.0,0.19622621]
[1680593736914,0.008,28015.0,28014.0,0.21791521]
[1680593737818,0.008,28015.0,28014.0,0.59311521]
[1680593738685,0.19749726,28017.0,28014.0,0.94782577]
[1680593738889,0.19749726,28017.0,28015.0,0.122112]
[1680593739099,0.19749726,28017.0,28016.0,0.022516]
[1680593740763,0.19749726,28017.0,28016.0,0.24224538]
[1680593740976,0.19749726,28017.0,28016.0,0.24242538]
[1680593741440,0.19749726,28017.0,28016.0,0.00018]
[1680593741655,0.19749726,28017.0,28014.0,0.1937516]
[1680593741881,0.19749726,28017.0,28015.0,0.1209195]
[1680593742306,0.19849726,28017.0,28015.0,0.1239195]
[1680593742515,0.19849726,28017.0,28015.0,0.1240995]
[1680593742712,0.19849726,28017.0,28015.0,0.00318]
[1680593742925,0.19749726,28017.0,28014.0,0.1741572]
[1680593743137,0.19849726,28017.0,28014.0,0.1771572]
[1680593743344,0.36003719,28016.0,28014.0,0.1771572]
[1680593743563,0.36574819,28016.0,28014.0,0.00318]
[1680593743814,0.36003719,28016.0,28014.0,0.003]
[1680593745314,0.36003719,28016.0,28013.0,0.00018]
[1680593745519,0.36003719,28016.0,28011.0,0.0879173]
[1680593745520,0.36003719,28016.0,28015.0,0.003]
[1680593745747,0.36003719,28016.0,28013.0,0.00018]
[1680593745950,0.36103719,28016.0,28014.0,0.003]
[1680593746418,0.36003719,28016.0,28013.0,0.00018]
[1680593746625,0.43438883,28016.0,28012.0,0.12312439]
[1680593746828,0.42638883,28016.0,28012.0,0.12312439]
[1680593747044,0.42738883,28016.0,28014.0,0.003]
[1680593747256,0.43309983,28016.0,28014.0,0.003]
[1680593747467,0.06420181,28015.0,28014.0,0.003]
[1680593748100,0.40561051,28015.0,28014.0,0.003]
[1680593748324,0.40561051,28015.0,28012.0,0.00018]
[1680593748536,0.3414087,28015.0,28012.0,0.00018]
[1680593748750,0.3414087,28015.0,28012.0,0.15511553]
[1680593748997,0.3414087,28015.0,28012.0,0.15811553]
[1680593749204,0.3414087,28015.0,28012.0,0.15511553]
[1680593749413,0.3424087,28015.0,28012.0,0.15811553]
[1680593751595,0.001,28015.0,28014.0,0.1]
[1680593751808,0.001,28015.0,28013.0,0.19110818]
[1680593752017,0.001,28015.0,28014.0,0.022226]
[1680593752238,0.001,28015.0,28013.0,0.19110818]
[1680593752455,0.001,28015.0,28014.0,0.022244]
[1680593752661,0.42246429,28016.0,28012.0,0.00018]
[1680593752922,0.3893396,28014.0,28010.0,0.38782103]
[1680593753133,0.3893396,28014.0,28010.0,0.25947764]
[1680593753341,0.3893396,28014.0,28010.0,0.38782103]
[1680593753564,0.19749726,28011.0,28010.0,0.12124456]
[1680593753780,0.19749726,28011.0,28010.0,0.00018]
[1680593753781,0.21724699,28011.0,28010.0,0.00018]
[1680593753994,0.21724699,28011.0,28010.0,0.00031234]
[1680593754202,0.22295899,28011.0,28010.0,0.00031234]
[1680593754624,0.22295899,28011.0,28010.0,0.00013234]
[1680593754625,0.21724699,28011.0,28010.0,0.00013234]
[1680593755042,0.21724699,28011.0,28008.0,0.00018]
[1680593755669,0.19749726,28011.0,28008.0,0.15475731]
[1680593755884,0.19749726,28011.0,28010.0,0.0035]
[1680593756319,0.19849726,28011.0,28010.0,0.0035]
[1680593756531,0.19749726,28011.0,28010.0,0.00262]
[1680593756816,0.19749726,28011.0,28010.0,0.0025]
[1680593757241,0.19849726,28011.0,28010.0,0.0025]
[1680593757909,0.19849726,28011.0,28010.0,0.00268]
[1680593758128,0.19876922,28011.0,28009.0,0.04106832]
[1680593758327,0.19833969,28011.0,28009.0,0.04106832]
[1680593758537,0.19806773,28011.0,28009.0,0.04106832]
[1680593758776,0.19706773,28011.0,28009.0,0.04106832]
[1680593759200,0.19806773,28011.0,28010.0,0.00013234]
[1680593759829,0.19706773,28011.0,28010.0,0.00013234]
[1680593760059,0.19806773,28011.0,28009.0,0.04106832]
[1680593761346,0.19706773,28011.0,28009.0,0.04106832]
[1680593762620,0.19806773,28011.0,28009.0,0.04206832]
[1680593763935,0.19806773,28011.0,28010.0,0.09228303]
[1680593766590,0.19706773,28011.0,28010.0,0.09228303]
[1680593767298,0.19806773,28011.0,28010.0,0.09228303]
[1680593769646,0.25461649,28011.0,28009.0,0.08559456]
[1680593769860,0.19806773,28011.0,28008.0,0.46079456]
[1680593770066,0.19806773,28011.0,28010.0,0.0005]
[1680593771491,0.19706773,28011.0,28010.0,0.0005]
[1680593772231,0.19806773,28011.0,28010.0,0.0005]
[1680593772452,0.19706773,28011.0,28010.0,0.0005]
[1680593772674,0.63345728,28011.0,28010.0,0.0005]
[1680593773100,0.58175405,28011.0,28010.0,0.0005]
[1680593774182,0.58175405,28011.0,28010.0,0.00063234]
[1680593774855,0.19806773,28011.0,28010.0,0.00063234]
[1680593775099,0.61506182,28011.0,28010.0,0.00063234]
[1680593775548,0.65230682,28011.0,28010.0,0.00063234]
[1680593775765,0.60934982,28011.0,28010.0,0.00063234]
[1680593777336,0.6808831,28011.0,28010.0,0.00063234]
[1680593777541,0.60934982,28011.0,28010.0,0.00063234]
[1680593779717,0.19806773,28011.0,28010.0,0.00063234]
[1680593779941,0.19806773,28011.0,28010.0,0.02288334]
[1680593780156,0.19806773,28011.0,28010.0,0.00063234]
[1680593781457,0.19806773,28011.0,28010.0,0.02252934]
[1680593781705,0.19806773,28011.0,28010.0,0.08309078]
[1680593781930,0.19806773,28011.0,28010.0,0.00063234]
[1680593784950,0.25492316,28011.0,28010.0,0.00063234]
[1680593785151,0.19806773,28011.0,28010.0,0.00063234]
[1680593786445,0.19806773,28011.0,28010.0,0.02288434]
[1680593786869,0.19806773,28011.0,28010.0,0.09035518]
[1680593787952,0.00092143,28011.0,28010.0,0.22569974]
[1680593788157,0.00092143,28011.0,28010.0,0.43976313]
[1680593788369,0.00092143,28011.0,28010.0,0.50660661]
[1680593788601,0.00092143,28011.0,28010.0,0.86143717]
[1680593788828,0.34481035,28011.0,28010.0,0.27256102]
[1680593789049,0.34481035,28011.0,28010.0,0.03746234]
[1680593789050,0.67374388,28011.0,28010.0,0.03746234]
[1680593789277,0.7438425,28011.0,28010.0,0.03746234]
[1680593789507,0.67374388,28011.0,28010.0,0.03728234]
[1680593791023,0.71127688,28011.0,28010.0,0.03728234]
[1680593791244,0.70927688,28011.0,28010.0,0.03628234]
[1680593791469,0.71127688,28011.0,28010.0,0.03728234]
[1680593791693,0.67174388,28011.0,28010.0,0.00063234]
[1680593791911,0.74954776,28011.0,28010.0,0.00163234]
[1680593792145,0.66703188,28011.0,28010.0,0.00163234]
[1680593792810,0.28865169,28011.0,28010.0,0.00163234]
[1680593793032,0.32690369,28011.0,28010.0,0.00163234]
[1680593793253,1.10183173,28011.0,28010.0,3.234e-05]
[1680593793487,2.68863108,28011.0,28010.0,3.234e-05]
[1680593793917,2.67110623,28011.0,28010.0,3.234e-05]
[1680593794132,2.29563427,28011.0,28010.0,3.234e-05]
[1680593794374,2.29583867,28011.0,28010.0,3.234e-05]
[1680593794654,2.29590623,28011.0,28010.0,3.234e-05]
[1680593794877,0.2,28010.0,28005.0,0.00075]
[1680593795112,0.28206773,28006.0,28005.0,0.00075]
[1680593795364,0.32416273,28006.0,28005.0,0.00075]
[1680593796086,0.32416273,28006.0,28005.0,0.00138741]
[1680593796567,0.31844973,28006.0,28005.0,0.00138741]
[1680593797068,0.34544973,28006.0,28005.0,0.00138741]
[1680593798522,0.82511497,28006.0,28005.0,0.00138741]
[1680593798690,0.35116273,28006.0,28005.0,0.00138741]
[1680593799359,0.74413698,28006.0,28005.0,0.00138741]
[1680593800043,0.74413698,28006.0,28001.0,0.00018]
[1680593800044,0.19706773,28003.0,28001.0,0.00018]
[1680593800246,0.19706773,28003.0,28000.0,0.00075]
[1680593800247,0.346239,28002.0,28000.0,0.00075]
[1680593800462,0.25986067,28001.0,28000.0,0.00075]
[1680593800688,0.6364532,28001.0,28000.0,0.00075]
[1680593801120,0.5514532,28001.0,28000.0,0.00138764]
[1680593801335,0.49712253,28001.0,28000.0,0.00138764]
[1680593803410,0.52412253,28001.0,28000.0,0.00138764]
[1680593803640,0.60639039,28001.0,28000.0,0.00138764]
[1680593804494,0.153244,28001.0,28000.0,0.00138764]
[1680593804701,0.82170048,28001.0,28000.0,0.00138764]
[1680593804918,0.95057231,28001.0,28000.0,0.00138764]
[1680593805133,0.95057231,28001.0,28000.0,0.00075]
[1680593805353,0.58211583,28001.0,28000.0,0.00075]
[1680593805783,0.66711583,28001.0,28000.0,0.00075]
[1680593806015,0.74011583,28001.0,28000.0,0.00075]
[1680593806212,0.76711583,28001.0,28000.0,0.00075]
[1680593806428,0.76711583,28001.0,28000.0,0.00125]
[1680593807069,0.74011583,28001.0,28000.0,0.00125]
[1680593807716,0.76711583,28001.0,28000.0,0.00125]
[1680593807981,0.96711583,28001.0,28000.0,0.00125]
[1680593808172,1.35081583,28001.0,28000.0,0.00125]
[1680593808387,1.85247583,28001.0,28000.0,0.00125]
[1680593808614,1.31651264,28001.0,28000.0,0.00125]
[1680593808828,1.69171264,28001.0,28000.0,0.00125]
[1680593809043,1.6649846,28001.0,28000.0,0.00125]
[1680593809256,1.6919846,28001.0,28000.0,0.00125]
[1680593809464,1.67418779,28001.0,28000.0,0.00125]
[1680593809672,1.64718779,28001.0,28000.0,0.00125]
[1680593809906,1.29898779,28001.0,28000.0,0.00125]
[1680593810331,1.18791277,28001.0,28000.0,0.00125]
[1680593810569,1.16091277,28001.0,28000.0,0.00125]
[1680593810785,1.18791277,28001.0,28000.0,0.00125]
[1680593811001,0.86541277,28001.0,28000.0,0.00125]
[1680593811428,0.84761596,28001.0,28000.0,0.00125]
[1680593811647,1.05967214,28001.0,28000.0,0.00125]
[1680593812279,1.03267214,28001.0,28000.0,0.00125]
[1680593812498,1.05967214,28001.0,28000.0,0.00125]
[1680593812710,1.03267214,28001.0,28000.0,0.00125]
[1680593812920,1.05967214,28001.0,28000.0,0.00125]
[1680593813194,1.03267214,28001.0,28000.0,0.00125]
[1680593813407,1.05967214,28001.0,28000.0,0.00125]
[1680593815441,1.07746895,28001.0,28000.0,0.00125]
[1680593816080,0.85691277,28001.0,28000.0,0.00125]
[1680593817787,1.14341667,28001.0,28000.0,0.00125]
[1680593818489,0.75691277,28001.0,28000.0,0.00125]
[1680593818700,1.25241753,28001.0,28000.0,0.00125]
[1680593819165,0.85691277,28001.0,28000.0,0.00125]
[1680593819379,1.03326907,28001.0,28000.0,0.00125]
[1680593819583,1.18493086,28001.0,28000.0,0.00125]
[1680593819832,1.10003086,28001.0,28000.0,0.00125]
[1680593821832,1.10003086,28001.0,27998.0,0.00297143]
[1680593821833,0.65421596,28001.0,27998.0,0.00297143]
[1680593822071,0.19706773,27999.0,27998.0,0.00297143]
[1680593822286,0.53777873,27999.0,27998.0,0.00297143]
[1680593824266,0.98876616,27999.0,27998.0,0.00297143]
[1680593825146,1.01576616,27999.0,27998.0,0.00297143]
[1680593825843,1.01576616,27999.0,27998.0,0.09319703]
[1680593825844,0.25906473,27999.0,27998.0,0.09319703]
[1680593826086,0.22406773,27999.0,27998.0,0.09319703]
[1680593826571,0.027,27999.0,27998.0,0.11269543]
[1680593826801,0.0209,28002.0,27998.0,0.12410043]
[1680593827038,0.0209,28002.0,27999.0,0.142776]
[1680593827260,0.0209,28002.0,28000.0,0.036033]
[1680593827502,0.0209,28002.0,28001.0,0.022187]
[1680593827952,0.0209,28002.0,28001.0,0.122367]
[1680593828176,0.0229,28002.0,28001.0,0.122367]
[1680593828387,0.0209,28002.0,28001.0,0.122367]
[1680593828627,0.0219,28002.0,28001.0,0.124367]
[1680593829509,0.0219,28002.0,28001.0,0.04248648]
[1680593830400,0.0209,28002.0,28001.0,0.04048648]
[1680593830625,0.0219,28002.0,28001.0,0.02029948]
[1680593830848,0.07803264,28002.0,28001.0,0.02029948]
[1680593831068,0.07803264,28002.0,28001.0,0.02023948]
[1680593831516,0.07803264,28002.0,28001.0,0.00212]
[1680593831740,0.07803264,28002.0,28001.0,0.002]
[1680593831967,0.07803264,28002.0,28001.0,0.00218]
[1680593833289,0.07903264,28002.0,28001.0,0.00418]
[1680593834116,0.07703264,28002.0,28001.0,0.00018]
[1680593834207,0.07903264,28002.0,28001.0,0.00018]
[1680593834420,0.07903264,28002.0,27999.0,0.08011152]
[1680593834421,0.07703264,28002.0,28000.0,0.00018]
[1680593834639,0.07903264,28002.0,28000.0,0.00018]
[1680593835062,0.07903264,28002.0,28000.0,0.00012]
[1680593835277,0.07903264,28002.0,27999.0,0.08029152]
[1680593835918,0.07703264,28002.0,27999.0,0.08029152]
[1680593836126,0.08503264,28002.0,27999.0,0.08029152]
[1680593836347,0.07703264,28002.0,27999.0,0.08029152]
[1680593836559,0.07803264,28002.0,27999.0,0.08229152]
[1680593836990,0.47707924,28001.0,27999.0,0.00218]
[1680593837218,0.47707924,28001.0,27999.0,0.00018]
[1680593837435,0.47707924,28001.0,27999.0,0.00218]
[1680593837659,0.47707924,28001.0,27999.0,0.00018]
[1680593837895,0.47707924,28001.0,27999.0,0.07057965]
[1680593838118,0.0209,28002.0,27999.0,0.07057965]
[1680593838348,0.002,28001.0,28000.0,0.021061]
[1680593839098,0.19706773,28003.0,28000.0,0.021061]
[1680593839302,0.19706773,28003.0,27999.0,0.07039965]
[1680593839507,0.001,28001.0,28000.0,0.002]
[1680593839715,0.001,28001.0,28000.0,0.023577]
[1680593840120,0.54041046,28003.0,27999.0,0.07039965]
[1680593840336,0.54141046,28003.0,27999.0,0.07239965]
[1680593841003,0.54141046,28003.0,27999.0,0.07039965]
[1680593841004,0.54041046,28003.0,27999.0,0.07039965]
[1680593841820,0.36477227,28002.0,27999.0,0.07039965]
[1680593842039,0.19706773,28003.0,28000.0,0.07879754]
[1680593842252,0.19706773,28003.0,28001.0,0.022144]
[1680593842462,0.19706773,28003.0,28002.0,0.08879825]
[1680593842888,0.19906773,28003.0,28002.0,0.08879825]
[1680593843091,0.19906773,28003.0,28002.0,0.17389825]
[1680593843295,0.19706773,28003.0,28002.0,0.17389825]
[1680593843501,0.21206773,28003.0,28002.0,0.19537425]
[1680593843706,0.21206773,28003.0,28002.0,0.17389825]
[1680593848222,0.21206773,28003.0,28002.0,0.08879825]
[1680593851714,0.26853925,28003.0,28002.0,0.08879825]
[1680593853049,0.21206773,28003.0,28002.0,0.08879825]
[1680593853268,0.21200113,28003.0,28001.0,0.08528]
[1680593853490,0.21200113,28003.0,28001.0,0.0851]
[1680593854594,0.21200113,28003.0,28000.0,0.076183]
[1680593854812,0.19700113,28003.0,28000.0,0.076003]
[1680593855464,0.20500113,28003.0,28000.0,0.076003]
[1680593855674,0.20500113,28003.0,28001.0,0.08484987]
[1680593856104,0.20500113,28003.0,28000.0,0.00518]
[1680593856323,0.20500113,28003.0,28000.0,0.005]
[1680593856755,0.20500113,28003.0,28000.0,0.07997847]
[1680593857673,0.19700113,28003.0,28000.0,0.07997847]
[1680593857886,0.19900113,28003.0,28000.0,0.07997847]
[1680593858527,0.19900113,28003.0,28001.0,0.07761603]
[1680593858963,0.19900113,28003.0,28000.0,0.00512]
[1680593859176,0.19900113,28003.0,28000.0,0.005]
[1680593860995,0.35692975,28002.0,28000.0,0.005]
[1680593862973,0.36464375,28002.0,28000.0,0.005]
[1680593863190,0.09722719,28001.0,28000.0,0.005]
[1680593863408,0.35059176,28001.0,28000.0,0.005]
[1680593863634,0.38227476,28001.0,28000.0,0.005]
[1680593864512,0.38427476,28001.0,28000.0,0.005]
[1680593864989,0.3842073,28001.0,28000.0,0.005]
[1680593865211,0.3468103,28001.0,28000.0,0.005]
[1680593865425,0.3824553,28001.0,28000.0,0.005]
[1680593865871,0.3468103,28001.0,28000.0,0.005]
[1680593866103,0.3833463,28001.0,28000.0,0.005]
[1680593866326,0.3468103,28001.0,28000.0,0.005]
[1680593867014,0.34708226,28001.0,28000.0,0.005]
[1680593867234,0.3468103,28001.0,28000.0,0.005]
[1680593870793,0.002,28001.0,28000.0,0.005]
[1680593875107,0.002,28001.0,28000.0,0.09067393]
[1680593875327,0.002,28001.0,28000.0,0.17617722]
[1680593876008,0.002,28001.0,28000.0,0.19700522]
[1680593876445,0.002,28001.0,28000.0,0.17617722]
[1680593877103,0.002,28001.0,28000.0,0.19843022]
[1680593877753,0.002,28001.0,28000.0,0.32677361]
[1680593877973,0.002,28001.0,28000.0,0.45641786]
[1680593878163,0.002,28001.0,28000.0,0.32677361]
[1680593878623,0.002,28001.0,28000.0,0.19843022]
[1680593878914,0.19700113,28003.0,28000.0,0.19843022]
[1680593879143,0.19700113,28003.0,28001.0,0.12154]
[1680593879383,0.19700113,28003.0,28001.0,0.1]
[1680593879601,0.19700113,28003.0,28001.0,0.17846841]
[1680593879995,0.19700113,28003.0,28002.0,0.07896689]
[1680593880404,0.19700113,28003.0,28000.0,0.09068329]
[1680593880647,0.58809651,28003.0,28000.0,0.09050329]
[1680593880971,0.58809651,28003.0,28000.0,0.16214529]
[1680593881200,0.37807733,28002.0,28000.0,0.09050329]
[1680593881899,0.2451375,28003.0,28000.0,0.17203492]
[1680593882130,0.24586554,28003.0,28000.0,0.17403492]
[1680593882572,0.24486554,28003.0,28000.0,0.17203492]
[1680593882801,0.001,28002.0,28000.0,0.17403492]
[1680593883499,0.60159712,28003.0,28000.0,0.17203492]
[1680593883697,0.60259712,28003.0,28000.0,0.17403492]
[1680593883940,0.60159712,28003.0,28000.0,0.17203492]
[1680593885518,0.001,28002.0,28000.0,0.17403492]
[1680593885733,0.60159712,28003.0,28000.0,0.17203492]
[1680593885952,0.60259712,28003.0,28000.0,0.17403492]
[1680593886172,0.60170958,28003.0,28000.0,0.17203492]
[1680593886391,0.001,28002.0,28000.0,0.08871163]
[1680593886861,0.60152383,28003.0,28000.0,0.08653163]
[1680593887102,0.60252383,28003.0,28000.0,0.08871163]
[1680593887553,0.60252383,28003.0,28000.0,0.08853163]
[1680593888002,0.60152383,28003.0,28000.0,0.08653163]
[1680593888236,0.001,28002.0,28000.0,0.08871163]
[1680593888463,0.4611087,28002.0,28000.0,0.08671163]
[1680593888686,0.4611087,28002.0,28000.0,0.08871163]
[1680593888905,0.4611087,28002.0,28000.0,0.08671163]
[1680593889127,0.4621087,28002.0,28000.0,0.08871163]
[1680593889350,0.4611087,28002.0,28000.0,0.08671163]
[1680593889573,0.4621087,28002.0,28000.0,0.08671163]
[1680593890352,0.4621087,28002.0,28000.0,0.00518]
[1680593890578,0.40990874,28001.0,28000.0,0.005]
[1680593890798,0.45319174,28001.0,28000.0,0.005]
[1680593891227,0.41562274,28001.0,28000.0,0.005]
[1680593891449,0.40990874,28001.0,28000.0,0.005]
[1680593891706,0.41090874,28001.0,28000.0,0.005]
[1680593892823,0.0773,28001.0,28000.0,0.005]
[1680593896796,0.001,28001.0,28000.0,0.005]
[1680593897016,0.001,28001.0,28000.0,0.07740775]
[1680593897285,0.001,28001.0,28000.0,0.16164796]
[1680593897513,0.001,28001.0,28000.0,0.17839154]
[1680593897755,0.001,28001.0,28000.0,0.30481391]
[1680593897969,0.001,28001.0,28000.0,0.44046391]
[1680593898415,0.39423277,28004.0,28000.0,0.44046391]
[1680593898636,0.39423277,28004.0,28001.0,0.115533]
[1680593898859,0.39423277,28004.0,28001.0,0.1]
[1680593899086,0.42490709,28003.0,28001.0,0.1]
[1680593899326,0.42517905,28003.0,28001.0,0.1]
[1680593900429,0.42517905,28003.0,28001.0,0.102]
[1680593900859,0.42617905,28003.0,28001.0,0.102]
[1680593903306,0.42617905,28003.0,28001.0,0.12221133]
[1680593904840,0.42517905,28003.0,28001.0,0.02021133]
[1680593904998,0.488525,28003.0,28001.0,0.002]
[1680593905202,0.488525,28003.0,28001.0,0.00188385]
[1680593905529,0.42590709,28003.0,28001.0,0.00188385]
[1680593906184,0.42517905,28003.0,28000.0,0.05248353]
[1680593906392,0.42857314,28002.0,28001.0,0.002]
[1680593906970,0.42857314,28002.0,28000.0,0.05248353]
[1680593907174,0.42857314,28002.0,28000.0,0.140073]
[1680593907381,0.42857314,28002.0,28000.0,0.08758947]
[1680593907549,0.43301633,28002.0,28000.0,0.08558947]
[1680593907936,0.43301633,28002.0,28001.0,0.002]
[1680593907937,0.43401633,28002.0,28001.0,0.002]
[1680593908153,0.47585633,28002.0,27999.0,0.08558947]
[1680593908374,0.04875553,28001.0,28000.0,0.0025]
[1680593908589,0.05446953,28001.0,28000.0,0.0025]
[1680593908814,0.45090606,28001.0,28000.0,0.0025]
[1680593909036,0.39643653,28001.0,28000.0,0.0025]
[1680593909253,0.39670849,28001.0,28000.0,0.0025]
[1680593909726,0.39670849,28001.0,28000.0,0.0045]
[1680593909941,0.39670849,28001.0,28000.0,0.0025]
[1680593910160,0.39770849,28001.0,28000.0,0.0045]
[1680593911498,0.00127196,28001.0,28000.0,0.0045]
[1680593911716,0.001,28001.0,28000.0,0.0045]
[1680593911908,0.001,28001.0,28000.0,0.21227071]
[1680593912376,0.59815629,28003.0,28000.0,0.21027071]
[1680593912604,0.59815629,28003.0,28000.0,0.11027071]
[1680593912832,0.001,28001.0,28000.0,0.2548991]
[1680593913064,0.00027196,28003.0,28000.0,0.2548991]
[1680593913065,0.6671717,28004.0,28000.0,0.39418462]
[1680593913290,0.001,28001.0,28000.0,0.25502463]
[1680593913508,0.6671717,28004.0,28001.0,0.1]
[1680593913734,0.6671717,28004.0,28001.0,0.18559599]
[1680593913735,0.001,28003.0,28001.0,0.18559599]
[1680593913952,0.6671717,28004.0,28002.0,0.015395]
[1680593914170,0.20127196,28004.0,28001.0,0.18559599]
[1680593914387,0.20127196,28004.0,28002.0,0.015865]
[1680593915065,0.20127196,28004.0,28001.0,0.10778801]
[1680593915287,0.20027196,28004.0,28001.0,0.10778801]
[1680593915514,0.002,28003.0,28001.0,0.10778801]
[1680593915733,0.20027196,28004.0,28002.0,0.015436]
[1680593915971,0.20827196,28004.0,28001.0,0.10778801]
[1680593916190,0.20027196,28004.0,28001.0,0.10778801]
[1680593916427,0.20227196,28004.0,28001.0,0.10978801]
[1680593916644,0.20027196,28004.0,28001.0,0.10778801]
[1680593916870,0.20227196,28004.0,28001.0,0.10778801]
[1680593917995,0.20027196,28004.0,28001.0,0.10778801]
[1680593918214,0.20227196,28004.0,28001.0,0.10978801]
[1680593918441,0.20027196,28004.0,28001.0,0.10778801]
[1680593918878,0.20127196,28004.0,28001.0,0.10978801]
[1680593919078,0.20127196,28004.0,28001.0,0.20978801]
[1680593920618,0.20027196,28004.0,28001.0,0.20778801]
[1680593920841,0.20127196,28004.0,28001.0,0.20978801]
[1680593921494,0.4488301,28003.0,28001.0,0.08759599]
[1680593921729,0.041498,28002.0,28001.0,0.002]
[1680593921954,0.44910206,28003.0,28001.0,0.002]
[1680593922180,0.44910206,28003.0,28000.0,0.08809599]
[1680593922401,0.44910206,28003.0,28001.0,0.002]
[1680593922622,0.44910206,28003.0,28000.0,0.08809599]
[1680593922854,0.44910206,28003.0,28000.0,0.21643938]
[1680593923541,0.002,28002.0,28000.0,0.23868883]
[1680593923762,0.52012999,28003.0,28000.0,0.23868883]
[1680593923981,0.52112999,28003.0,28000.0,0.24068883]
[1680593924216,0.52112999,28003.0,28000.0,0.23868883]
[1680593924442,0.52012999,28003.0,28000.0,0.23868883]
[1680593924661,0.001,28002.0,28000.0,0.24068883]
[1680593924894,0.52012999,28003.0,28000.0,0.23868883]
[1680593925109,0.52112999,28003.0,28000.0,0.24068883]
[1680593926535,0.41979817,28002.0,28000.0,0.21843938]
[1680593926740,0.35366407,28001.0,28000.0,0.0045]
[1680593927145,0.35366407,28001.0,28000.0,0.0025]
[1680593927605,0.35366407,28001.0,28000.0,0.09009599]
[1680593927834,0.35366407,28001.0,28000.0,0.08809599]
[1680593928059,0.35457678,28001.0,28000.0,0.09009599]
[1680593929887,0.35357678,28001.0,28000.0,0.08809599]
[1680593930109,0.35557678,28001.0,28000.0,0.08809599]
[1680593930552,0.35557678,28001.0,28000.0,0.0025]
[1680593931662,0.41173295,28001.0,28000.0,0.0025]
[1680593938698,0.35557678,28001.0,28000.0,0.0025]
[1680593939145,0.35576253,28001.0,28000.0,0.0025]
[1680593939379,0.35557678,28001.0,28000.0,0.0025]
[1680593940512,0.36129078,28001.0,28000.0,0.0025]
[1680593940731,0.40265978,28001.0,28000.0,0.0025]
[1680593940955,0.36129078,28001.0,28000.0,0.0025]
[1680593941414,0.35557678,28001.0,28000.0,0.0025]
[1680593942304,0.35584874,28001.0,28000.0,0.0025]
[1680593942567,0.35584874,28001.0,27999.0,0.1]
[1680593943233,0.35384874,28001.0,27999.0,0.1]
[1680593943434,0.35484874,28001.0,27999.0,0.102]
[1680593944316,0.3436432,28000.0,27999.0,0.002]
[1680593945214,0.3436432,28000.0,27998.0,0.22511629]
[1680593945657,0.3446432,28000.0,27999.0,0.002]
[1680593946394,0.3436432,28000.0,27998.0,0.22511629]
[1680593946610,0.3446432,28000.0,27998.0,0.22711629]
[1680593947491,0.3436432,28000.0,27998.0,0.22511629]
[1680593947720,0.3436432,28000.0,27999.0,0.002]
[1680593947721,0.3446432,28000.0,27999.0,0.002]
[1680593947938,0.3436432,28000.0,27998.0,0.22511629]
[1680593948180,0.3446432,28000.0,27998.0,0.22711629]
[1680593948605,0.3436432,28000.0,27998.0,0.22511629]
[1680593948827,0.3446432,28000.0,27999.0,0.002]
[1680593949090,0.3436432,28000.0,27998.0,0.22511629]
[1680593949282,0.3446432,28000.0,27998.0,0.22711629]
[1680593949527,0.2,27999.0,27998.0,0.20677451]
[1680593949749,0.60175288,27999.0,27998.0,0.03565]
[1680593949976,0.55832388,27999.0,27998.0,0.03565]
[1680593951128,0.55832388,27999.0,27998.0,0.03765]
[1680593951129,0.55932388,27999.0,27998.0,0.03765]
[1680593951350,0.60288388,27999.0,27998.0,0.03765]
[1680593951573,0.55932388,27999.0,27998.0,0.16607206]
[1680593951810,0.55959584,27999.0,27998.0,0.16607206]
[1680593952466,0.55959584,27999.0,27998.0,0.25168534]
[1680593952695,0.55959584,27999.0,27998.0,0.12326328]
[1680593952913,0.55959584,27999.0,27998.0,0.25168534]
[1680593953579,0.63658098,27999.0,27998.0,0.25168534]
[1680593953798,0.63086698,27999.0,27998.0,0.25168534]
[1680593954022,0.68187598,27999.0,27998.0,0.08761328]
[1680593954248,0.98187598,27999.0,27998.0,0.002]
[1680593954472,0.7086521,27999.0,27998.0,0.002]
[1680593954694,1.06150474,27999.0,27995.0,0.005]
[1680593954919,0.2,27996.0,27995.0,0.09061328]
[1680593955131,0.50027196,27996.0,27995.0,0.09061328]
[1680593956917,0.51527196,27996.0,27995.0,0.005]
[1680593957134,0.62685529,27996.0,27995.0,0.005]
[1680593958441,0.62685529,27996.0,27995.0,0.09061328]
[1680593958687,0.62685529,27996.0,27995.0,0.005]
[1680593959340,0.51527196,27996.0,27995.0,0.005]
[1680593961946,0.51527196,27996.0,27995.0,0.02150903]
[1680593962250,0.59187196,27996.0,27995.0,0.02150903]
[1680593962503,0.29187196,27996.0,27995.0,0.09061328]